lending/lending_fUSD_20260110
["ID","MTS","AMOUNT","RATE_DAILY","PERIOD"]
[401252087,1768076780633,150.0,0.000146,2]
[401252088,1768076780789,150.0,0.00014655,2]
[401252090,1768076828606,710.0,0.00014545,2]
[401252091,1768076828783,470.69595082,0.000146,2]
[401252092,1768076828808,239.30404918,0.000146,2]
[401252093,1768076828882,1976.450204,7.945e-05,2]
[401252094,1768076828991,710.0,0.00014655,2]
[401252095,1768076829898,150.0,0.00014545,2]
[401252096,1768076830037,150.0,0.000146,2]
[401252097,1768076830708,200.0,0.00014655,2]
[401252105,1768076949236,500.0,0.00014544,2]
[401252106,1768076949383,500.0,0.00014599,2]
[401252107,1768076949523,530.66926965,0.00014654,2]
[401252108,1768076987017,1452.78,0.00013881,2]
[401252109,1768077013764,3590.80647717,0.0001469,2]
[401252110,1768077013786,2759.02222283,0.0001469,2]
[401252111,1768077015491,150.0,0.00014544,2]
[401252112,1768077015673,150.0,0.00014599,2]
[401252113,1768077015829,150.0,0.00014654,2]
[401252114,1768077017067,500.0,0.00014544,2]
[401252115,1768077017207,500.0,0.00014599,2]
[401252116,1768077017372,600.0,0.00014654,2]
[401252117,1768077020083,236.6149,0.0001469,2]
[401252120,1768077032107,-1200.0,0.00014708,2]
[401252123,1768077032116,-195.0,0.00014708,2]
[401252126,1768077032126,-161.09943952,0.00014708,2]
[401252129,1768077032136,-250.0,0.00014709,2]
[401252132,1768077032146,-276.22792842,0.00014709,2]
[401252134,1768077032156,-161.35165335,0.00014709,2]
[401252136,1768077032166,-150.0,0.00014709,2]
[401252138,1768077032175,-218.01144779,0.00014709,2]
[401252139,1768077032185,-150.0,0.00014709,2]
[401252140,1768077032195,-150.0,0.00014709,2]
[401252141,1768077032204,-396.98457547,0.00014709,2]
[401252142,1768077032214,-150.0,0.00014709,2]
[401252143,1768077032224,-158.06709618,0.00014709,2]
[401252144,1768077032234,-150.0,0.00014709,2]
[401252145,1768077032244,-710.0,0.00014709,2]
[401252146,1768077032254,-195.0,0.00014712,2]
[401252147,1768077032264,-195.0,0.00014715,2]
[401252148,1768077032273,-300.0,0.00014715,2]
[401252149,1768077032283,-150.0,0.00014719,2]
[401252150,1768077032292,-1219.52379571,0.00014721,2]
[401252151,1768077032302,-380.61837891,0.00014721,2]
[401252152,1768077032313,-646.95932909,0.00014721,2]
[401252153,1768077032325,-2602.86816267,0.00014721,2]
[401252155,1768077032336,-1377.93241419,0.00014721,2]
[401252157,1768077032347,-1060.92531021,0.00014721,2]
[401252158,1768077032360,-665.86849656,0.00014721,2]
[401252159,1768077032379,-1708.33670036,0.00014721,2]
[401252161,1768077032389,-810.77312667,0.00014721,2]
[401252163,1768077032400,-487.0242411,0.00014721,2]
[401252165,1768077032411,-8960.0,0.00014721,2]
[401252168,1768077032422,-1872.07752206,0.00014721,2]
[401252170,1768077032433,-4910.06818058,0.00014721,2]
[401252172,1768077032447,-211.47892332,0.00014721,2]
[401252174,1768077032456,-336.13308395,0.00014721,2]
[401252176,1768077032464,-336.13308395,0.00014721,2]
[401252177,1768077032473,-500.0,0.00014738,2]
[401252178,1768077032483,-1105.04978777,0.00014738,2]
[401252179,1768077032494,-305.85181942,0.00014738,2]
[401252180,1768077032505,-999.0,0.00014738,2]
[401252181,1768077032516,-122.47839281,0.00014738,2]
[401252182,1768077032526,-166.66,0.00014739,2]
[401252183,1768077032535,-150.0,0.00014764,2]
[401252184,1768077032545,-10.53187109,0.00014764,2]
[401252185,1768077032557,-139.46812891,0.00014764,2]
[401252186,1768077032567,-710.0,0.00014764,2]
[401252187,1768077032577,-1178.91,0.0001479,2]
[401252188,1768077032586,-2420.43570211,0.0001479,2]
[401252189,1768077032598,-300.0,0.0001479,2]
[401252190,1768077038209,-1439.312,0.0001479,2]
[401252191,1768077038222,-357.57229789,0.0001479,2]
[401252192,1768077038231,-44.04391711,0.0001479,2]
[401252193,1768077038265,-955.94608289,0.0001479,2]
[401252194,1768077038274,-299.99,0.0001479,2]
[401252195,1768077038284,-150.99,0.0001479,2]
[401252196,1768077038294,-3110.71396709,0.0001479,2]
[401252197,1768077038306,-558.38385669,0.0001479,2]
[401252198,1768077038379,-432.46183533,0.0001479,2]
[401252616,1768077042505,-5898.43034089,0.0001479,2]
[401252618,1768077042515,-9999.99,0.0001479,2]
[401252621,1768077042526,-12328.59,0.0001479,2]
[401252623,1768077042536,-1534.56,0.0001479,2]
[401252625,1768077042545,-746.01,0.0001479,2]
[401252627,1768077042554,-6159.61,0.0001479,2]
[401252629,1768077042564,-150.99,0.0001479,2]
[401252631,1768077042573,-21390.53,0.0001479,2]
[401252633,1768077042583,-500.0,0.00014793,2]
[401252635,1768077042593,-200.0,0.00014812,2]
[401252637,1768077042602,-200.0,0.00014812,2]
[401252639,1768077042616,-200.0,0.00014812,2]
[401252641,1768077042625,-157.35456451,0.00014812,2]
[401252643,1768077042634,-500.0,0.00014812,2]
[401252645,1768077042645,-500.0,0.00014812,2]
[401252647,1768077042654,-500.0,0.00014812,2]
[401252649,1768077042663,-500.0,0.00014812,2]
[401252651,1768077042672,-500.0,0.00014812,2]
[401252653,1768077042682,-500.0,0.00014812,2]
[401252655,1768077042691,-500.0,0.00014812,2]
[401252657,1768077042701,-500.0,0.00014812,2]
[401252659,1768077042711,-500.0,0.00014812,2]
[401252661,1768077042720,-505.93123413,0.00014812,2]
[401252664,1768077042730,-500.0,0.00014812,2]
[401252665,1768077042739,-237.03265591,0.00014812,2]
[401252667,1768077042749,-151.0,0.00014812,2]
[401252670,1768077042758,-151.0,0.00014812,2]
[401252671,1768077042768,-151.0,0.00014812,2]
[401252673,1768077042778,-151.0,0.00014812,2]
[401252676,1768077042787,-151.0,0.00014812,2]
[401252678,1768077042797,-151.0,0.00014812,2]
[401252680,1768077042806,-151.0,0.00014812,2]
[401252682,1768077042815,-151.0,0.00014812,2]
[401252683,1768077042825,-151.0,0.00014812,2]
[401252686,1768077042834,-151.0,0.00014812,2]
[401252688,1768077042844,-151.0,0.00014812,2]
[401252690,1768077042853,-151.0,0.00014812,2]
[401252692,1768077042863,-500.0,0.00014817,2]
[401252694,1768077042872,-500.0,0.00014817,2]
[401252696,1768077042881,-500.0,0.00014817,2]
[401252698,1768077042891,-500.0,0.00014817,2]
[401252700,1768077042900,-500.0,0.00014817,2]
[401252702,1768077042909,-500.0,0.00014817,2]
[401252704,1768077042918,-500.0,0.00014817,2]
[401252706,1768077042928,-500.0,0.00014817,2]
[401252708,1768077042937,-500.0,0.00014817,2]
[401252710,1768077042948,-500.0,0.00014817,2]
[401252712,1768077042958,-500.0,0.00014817,2]
[401252714,1768077042967,-500.0,0.00014817,2]
[401252718,1768077042981,-500.0,0.00014817,2]
[401252720,1768077042990,-517.45550242,0.00014817,2]
[401252722,1768077043000,-500.0,0.00014817,2]
[401252724,1768077043009,-500.0,0.00014817,2]
[401252726,1768077043019,-500.0,0.00014817,2]
[401252729,1768077043031,-500.0,0.00014817,2]
[401252731,1768077043040,-500.0,0.00014817,2]
[401252734,1768077043050,-500.0,0.00014817,2]
[401252736,1768077043060,-500.0,0.00014817,2]
[401252738,1768077043069,-500.0,0.00014817,2]
[401252740,1768077043078,-500.0,0.00014817,2]
[401252742,1768077043087,-500.0,0.00014817,2]
[401252744,1768077043096,-500.0,0.00014817,2]
[401252746,1768077043106,-500.0,0.00014817,2]
[401252748,1768077043119,-500.0,0.00014817,2]
[401252750,1768077043129,-500.0,0.00014817,2]
[401252752,1768077043139,-500.0,0.00014817,2]
[401252754,1768077043148,-500.0,0.00014817,2]
[401252756,1768077043157,-500.0,0.00014817,2]
[401252758,1768077043170,-500.0,0.00014817,2]
[401252760,1768077043180,-500.0,0.00014817,2]
[401252762,1768077043189,-500.0,0.00014817,2]
[401252764,1768077043199,-236.79272022,0.00014817,2]
[401252768,1768077043226,-263.20727978,0.00014817,2]
[401252770,1768077043236,-500.0,0.00014817,2]
[401252772,1768077043246,-500.0,0.00014817,2]
[401252774,1768077043256,-500.0,0.00014817,2]
[401252776,1768077043266,-500.0,0.00014817,2]
[401252778,1768077043276,-500.0,0.00014817,2]
[401252780,1768077043285,-500.0,0.00014817,2]
[401252782,1768077043296,-500.0,0.00014817,2]
[401252784,1768077043306,-500.0,0.00014817,2]
[401252786,1768077043315,-500.0,0.00014817,2]
[401252789,1768077043325,-500.0,0.00014817,2]
[401252791,1768077043335,-500.0,0.00014817,2]
[401252793,1768077043346,-500.0,0.00014817,2]
[401252795,1768077043356,-500.0,0.00014817,2]
[401252797,1768077043369,-500.0,0.00014817,2]
[401252799,1768077043379,-500.0,0.00014817,2]
[401252801,1768077043389,-500.0,0.00014817,2]
[401252803,1768077043399,-500.0,0.00014817,2]
[401252805,1768077043409,-500.0,0.00014817,2]
[401252807,1768077043418,-500.0,0.00014817,2]
[401252809,1768077043428,-500.0,0.00014817,2]
[401252811,1768077043437,-500.0,0.00014817,2]
[401252814,1768077043447,-500.0,0.00014817,2]
[401252816,1768077043457,-500.0,0.00014817,2]
[401252818,1768077043466,-605.49597777,0.00014817,2]
[401252820,1768077043476,-500.0,0.00014817,2]
[401252822,1768077043486,-500.0,0.00014817,2]
[401252824,1768077043496,-500.0,0.00014817,2]
[401252826,1768077043505,-300.0,0.00014817,2]
[401252828,1768077043515,-500.0,0.00014817,2]
[401252830,1768077043525,-500.0,0.00014817,2]
[401252832,1768077043535,-500.0,0.00014817,2]
[401252834,1768077043544,-500.0,0.00014817,2]
[401252836,1768077043554,-500.0,0.00014817,2]
[401252838,1768077043567,-500.0,0.00014817,2]
[401252840,1768077043577,-500.0,0.00014817,2]
[401252842,1768077043587,-500.0,0.00014817,2]
[401252844,1768077043596,-500.0,0.00014817,2]
[401252847,1768077043606,-500.0,0.00014817,2]
[401252849,1768077043616,-500.0,0.00014819,2]
[401252851,1768077043626,-206.22263087,0.00014819,2]
[401252853,1768077043635,-710.0,0.00014819,2]
[401252855,1768077043645,-1425.589,0.00014819,2]
[401252857,1768077043654,-167.203,0.00014819,2]
[401252859,1768077043663,-500.0,0.0001482,2]
[401252861,1768077043673,-500.0,0.0001482,2]
[401252863,1768077043682,-570.12953504,0.0001482,2]
[401252865,1768077043692,-500.0,0.0001482,2]
[401252867,1768077043701,-500.0,0.0001482,2]
[401252868,1768077043711,-603.35608063,0.0001482,2]
[401252871,1768077043720,-450.82702438,0.0001482,2]
[401252873,1768077043730,-271.8254403,0.0001482,2]
[401252877,1768077043740,-500.0,0.0001482,2]
[401252879,1768077043749,-500.0,0.0001482,2]
[401252905,1768077044077,-500.0,0.0001482,2]
[401252907,1768077044093,-500.0,0.0001482,2]
[401252909,1768077044103,-1000000.0,0.00014821,2]
[401252911,1768077044116,-510.947712,0.00014821,2]
[401252913,1768077044125,-510.947712,0.00014821,2]
[401252915,1768077044135,-510.947712,0.00014821,2]
[401252917,1768077044144,-510.947712,0.00014821,2]
[401252919,1768077044165,-4109.4312,0.00014821,2]
[401252921,1768077044180,-454.23035244,0.00014848,2]
[401252924,1768077044191,-710.0,0.00014874,2]
[401252926,1768077044201,-28752.3012,0.00014921,2]
[401252928,1768077044211,-625.46849817,0.00014921,2]
[401252929,1768077044221,-710.0,0.00014929,2]
[401252931,1768077044231,-578.42921764,0.00014948,2]
[401252933,1768077044241,-710.0,0.00014983,2]
[401252936,1768077044253,-1428.32031009,0.00015,2]
[401252938,1768077044263,-163.576736,0.00015002,2]
[401252940,1768077044273,-500.0,0.00015006,2]
[401252942,1768077044282,-1589.98,0.0001501,2]
[401252944,1768077044291,-266.979201,0.0001501,2]
[401252946,1768077044300,-266.979201,0.0001501,2]
[401252948,1768077044310,-266.979201,0.0001501,2]
[401252950,1768077044319,-266.979201,0.0001501,2]
[401252952,1768077044328,-231.40282924,0.0001502,2]
[401252954,1768077044339,-1899.23071139,0.0001502,2]
[401252956,1768077044349,-233.67326927,0.0001502,2]
[401252958,1768077044359,-500.0,0.0001502,2]
[401252960,1768077044369,-500.0,0.0001502,2]
[401252962,1768077044379,-500.0,0.0001502,2]
[401252964,1768077044388,-500.0,0.0001502,2]
[401252966,1768077044398,-500.0,0.0001502,2]
[401252968,1768077044408,-537.63319283,0.0001502,2]
[401252970,1768077044418,-500.0,0.0001502,2]
[401252972,1768077044427,-500.0,0.0001502,2]
[401252974,1768077044436,-500.0,0.0001502,2]
[401252976,1768077044445,-500.0,0.0001502,2]
[401252978,1768077044455,-243790.0320265,0.00015021,2]
[401252980,1768077044464,-6734.0104515,0.00015021,2]
[401252982,1768077044473,-200.0,0.00015021,2]
[401252984,1768077044483,-1190.5330445,0.00015021,2]
[401252986,1768077044492,-74256.9033867,0.00015021,2]
[401252988,1768077044501,-200.0,0.00015021,2]
[401252990,1768077044511,-200.0,0.00015021,2]
[401252992,1768077044520,-266.979201,0.00015021,2]
[401252994,1768077044530,-266.979201,0.00015021,2]
[401252996,1768077044540,-266.979201,0.00015021,2]
[401252998,1768077044549,-266.979201,0.00015021,2]
[401253000,1768077044558,-266.979201,0.00015021,2]
[401253002,1768077044568,-266.979201,0.00015021,2]
[401253004,1768077044578,-266.979201,0.00015021,2]
[401253006,1768077044588,-266.979201,0.00015021,2]
[401253008,1768077044597,-266.979201,0.00015021,2]
[401253010,1768077044606,-266.979201,0.00015021,2]
[401253012,1768077044616,-266.979201,0.00015021,2]
[401253014,1768077044625,-266.979201,0.00015021,2]
[401253016,1768077044635,-338.734734,0.00015021,2]
[401253018,1768077044645,-338.734734,0.00015021,2]
[401253020,1768077044654,-338.734734,0.00015021,2]
[401253022,1768077044663,-338.734734,0.00015021,2]
[401253024,1768077044673,-338.734734,0.00015021,2]
[401253026,1768077044682,-338.734734,0.00015021,2]
[401253028,1768077044691,-338.734734,0.00015021,2]
[401253030,1768077044700,-338.734734,0.00015021,2]
[401253032,1768077044709,-200.0,0.00015021,2]
[401253034,1768077044718,-510.947712,0.00015021,2]
[401253036,1768077044727,-510.947712,0.00015021,2]
[401253038,1768077044736,-510.947712,0.00015021,2]
[401253040,1768077044745,-510.947712,0.00015021,2]
[401253042,1768077044755,-510.947712,0.00015021,2]
[401253044,1768077044764,-510.947712,0.00015021,2]
[401253046,1768077044772,-510.947712,0.00015021,2]
[401253048,1768077044781,-510.947712,0.00015021,2]
[401253050,1768077044789,-710.0,0.00015038,2]
[401253052,1768077044797,-166.66,0.00015048,2]
[401253054,1768077044805,-172.741292,0.00015068,2]
[401253056,1768077044812,-172.741292,0.00015068,2]
[401253057,1768077044820,-172.741292,0.00015068,2]
[401253060,1768077044830,-172.741292,0.00015068,2]
[401253062,1768077044839,-172.741292,0.00015068,2]
[401253063,1768077044850,-172.741292,0.00015068,2]
[401253066,1768077044868,-172.741292,0.00015068,2]
[401253068,1768077044877,-172.741292,0.00015068,2]
[401253070,1768077044886,-172.741292,0.00015068,2]
[401253072,1768077044895,-172.741292,0.00015068,2]
[401253074,1768077044905,-172.741292,0.00015068,2]
[401253076,1768077044914,-172.741292,0.00015068,2]
[401253078,1768077044924,-8443.50879199,0.00015074,2]
[401253080,1768077044933,-17251.42199372,0.00015074,2]
[401253082,1768077044942,-500.0,0.00015093,2]
[401253084,1768077044952,-710.0,0.00015093,2]
[401253086,1768077044963,-665.77,0.00015109,2]
[401253088,1768077044972,-710.0,0.00015148,2]
[401253090,1768077044983,-200.0,0.00015171,2]
[401253092,1768077044992,-200.0,0.00015171,2]
[401253095,1768077045002,-200.0,0.00015171,2]
[401253097,1768077045011,-500.0,0.00015173,2]
[401253099,1768077045020,-500.0,0.00015173,2]
[401253101,1768077045030,-501.08291115,0.00015173,2]
[401253102,1768077045039,-500.0,0.00015173,2]
[401253104,1768077045048,-500.0,0.00015173,2]
[401253106,1768077045056,-500.0,0.00015173,2]
[401253108,1768077045064,-500.0,0.00015173,2]
[401253110,1768077045071,-500.0,0.00015173,2]
[401253112,1768077045080,-500.0,0.00015173,2]
[401253114,1768077045089,-500.0,0.00015173,2]
[401253116,1768077045103,-500.0,0.00015173,2]
[401253118,1768077045112,-412.86652117,0.00015173,2]
[401253120,1768077045122,-500.0,0.00015173,2]
[401253122,1768077045132,-500.0,0.00015173,2]
[401253124,1768077045141,-500.0,0.00015173,2]
[401253126,1768077045150,-500.0,0.00015173,2]
[401253128,1768077045162,-500.0,0.00015173,2]
[401253130,1768077045172,-500.0,0.00015173,2]
[401253132,1768077045183,-500.0,0.00015173,2]
[401253134,1768077045194,-500.0,0.00015173,2]
[401253137,1768077045204,-500.0,0.00015173,2]
[401253138,1768077045213,-500.0,0.00015173,2]
[401253141,1768077045223,-500.0,0.00015173,2]
[401253142,1768077045232,-500.0,0.00015173,2]
[401253144,1768077045242,-500.51555347,0.00015173,2]
[401253147,1768077045251,-336.13308389,0.00015175,2]
[401253149,1768077045261,-336.13308389,0.00015175,2]
[401253151,1768077045270,-1032.06064161,0.0001519,2]
[401253153,1768077045279,-500.0,0.00015191,2]
[401253154,1768077045288,-500.0,0.00015191,2]
[401253157,1768077045297,-500.0,0.00015191,2]
[401253158,1768077045307,-500.0,0.00015191,2]
[401253160,1768077045317,-506.46687263,0.00015191,2]
[401253162,1768077045326,-500.0,0.00015191,2]
[401253165,1768077045336,-500.0,0.00015191,2]
[401253167,1768077045346,-500.0,0.00015191,2]
[401253169,1768077045355,-500.0,0.00015191,2]
[401253171,1768077045365,-500.0,0.00015191,2]
[401253173,1768077045375,-500.0,0.00015191,2]
[401253174,1768077045384,-500.0,0.00015191,2]
[401253177,1768077045394,-500.0,0.00015191,2]
[401253179,1768077045403,-500.0,0.00015191,2]
[401253181,1768077045414,-500.0,0.00015191,2]
[401253183,1768077045424,-500.0,0.00015191,2]
[401253185,1768077045434,-500.0,0.00015191,2]
[401253187,1768077045444,-500.0,0.00015193,2]
[401253189,1768077045453,-500.0,0.00015193,2]
[401253190,1768077045463,-500.0,0.00015193,2]
[401253192,1768077045472,-525.03126034,0.00015193,2]
[401253194,1768077045482,-500.0,0.00015193,2]
[401253196,1768077045492,-500.0,0.00015193,2]
[401253198,1768077045501,-500.0,0.00015193,2]
[401253200,1768077045511,-500.0,0.00015193,2]
[401253202,1768077045520,-500.0,0.00015193,2]
[401253204,1768077045529,-500.0,0.00015193,2]
[401253206,1768077045539,-500.0,0.00015193,2]
[401253208,1768077045548,-500.0,0.00015193,2]
[401253210,1768077045558,-500.0,0.00015193,2]
[401253212,1768077045568,-500.0,0.00015193,2]
[401253214,1768077045577,-500.0,0.00015193,2]
[401253216,1768077045586,-500.0,0.00015193,2]
[401253218,1768077045596,-414.08933578,0.00015193,2]
[401253220,1768077045606,-500.0,0.00015193,2]
[401253222,1768077045615,-500.0,0.00015193,2]
[401253224,1768077045625,-500.0,0.00015193,2]
[401253226,1768077045635,-500.0,0.00015193,2]
[401253228,1768077045644,-500.0,0.00015193,2]
[401253230,1768077045653,-500.0,0.00015193,2]
[401253232,1768077045662,-500.0,0.00015193,2]
[401253234,1768077045672,-500.0,0.00015193,2]
[401253236,1768077045681,-575.35243908,0.00015193,2]
[401253238,1768077045691,-500.0,0.00015193,2]
[401253240,1768077045700,-510.947712,0.00015193,2]
[401253242,1768077045709,-172.741292,0.00015193,2]
[401253244,1768077045719,-510.947712,0.00015193,2]
[401253246,1768077045728,-172.741292,0.00015193,2]
[401253248,1768077045738,-510.947712,0.00015193,2]
[401253250,1768077045747,-510.947712,0.00015193,2]
[401253252,1768077045757,-172.741292,0.00015193,2]
[401253254,1768077045766,-172.741292,0.00015193,2]
[401253256,1768077045775,-151.0,0.00015194,2]
[401253258,1768077045784,-151.0,0.00015194,2]
[401253260,1768077045794,-710.0,0.00015203,2]
[401253262,1768077045804,-710.0,0.00015257,2]
[401253264,1768077045813,-1000.0,0.00015258,2]
[401253266,1768077045827,-1589.98,0.00015284,2]
[401253268,1768077045841,-500.0,0.00015288,2]
[401253270,1768077045850,-1000.0,0.00015288,2]
[401253272,1768077045859,-466.97,0.000153,2]
[401253274,1768077045868,-466.97,0.000153,2]
[401253276,1768077045877,-556.55,0.000153,2]
[401253278,1768077045887,-466.97,0.000153,2]
[401253279,1768077045896,-933.94,0.000153,2]
[401253281,1768077045905,-1500.0,0.00015303,2]
[401253282,1768077045917,-1197.7,0.0001531,2]
[401253284,1768077045926,-1266.47,0.0001531,2]
[401253287,1768077045936,-710.0,0.00015312,2]
[401253288,1768077045947,-200.0,0.00015323,2]
[401253290,1768077045957,-200.0,0.00015323,2]
[401253292,1768077045967,-200.0,0.00015323,2]
[401253294,1768077045976,-200.0,0.0001536,2]
[401253296,1768077045985,-200.0,0.0001536,2]
[401253299,1768077045997,-500.0,0.0001536,2]
[401253301,1768077046007,-338.734734,0.0001536,2]
[401253303,1768077046016,-338.734734,0.0001536,2]
[401253305,1768077046025,-338.734734,0.0001536,2]
[401253307,1768077046035,-338.734734,0.0001536,2]
[401253309,1768077046046,-500.0,0.00015367,2]
[401253310,1768077046056,-710.0,0.00015367,2]
[401253312,1768077046066,-4841.00763,0.0001538,2]
[401253314,1768077046076,-266.979201,0.00015387,2]
[401253316,1768077046085,-266.979201,0.00015387,2]
[401253319,1768077046095,-266.979201,0.00015387,2]
[401253320,1768077046104,-266.979192,0.00015387,2]
[401253323,1768077046117,-29442.43789979,0.00015387,2]
[401253324,1768077046127,-4841.00764,0.0001539,2]
[401253326,1768077046138,-4841.00764,0.0001539,2]
[401253328,1768077046149,-4841.00764,0.0001539,2]
[401253331,1768077046160,-4841.00763,0.0001539,2]
[401253332,1768077046171,-437.58562247,0.00015393,2]
[401253334,1768077046181,-500.0,0.00015393,2]
[401253337,1768077046192,-629.25,0.00015393,2]
[401253339,1768077046202,-500.0,0.00015393,2]
[401253341,1768077046211,-500.0,0.00015393,2]
[401253343,1768077046219,-500.0,0.00015393,2]
[401253344,1768077046229,-500.0,0.00015393,2]
[401253347,1768077046239,-528.37841332,0.00015393,2]
[401253349,1768077046250,-500.0,0.00015393,2]
[401253351,1768077046259,-554.37620255,0.00015393,2]
[401253352,1768077046269,-500.0,0.00015393,2]
[401253354,1768077046278,-500.0,0.00015393,2]
[401253356,1768077046288,-500.0,0.00015393,2]
[401253358,1768077046298,-500.0,0.00015393,2]
[401253360,1768077046307,-500.0,0.00015393,2]
[401253363,1768077046318,-321.10769147,0.00015393,2]
[401253364,1768077046328,-500.0,0.00015393,2]
[401253366,1768077046337,-500.0,0.00015393,2]
[401253368,1768077046347,-500.0,0.00015393,2]
[401253370,1768077046356,-610.79386728,0.00015393,2]
[401253372,1768077046366,-500.0,0.00015393,2]
[401253374,1768077046375,-500.0,0.00015393,2]
[401253376,1768077046384,-500.0,0.00015393,2]
[401253378,1768077046394,-500.0,0.00015393,2]
[401253380,1768077046403,-710.0,0.00015422,2]
[401253382,1768077046413,-510.947712,0.00015427,2]
[401253384,1768077046422,-172.741292,0.00015427,2]
[401253386,1768077046431,-510.947712,0.00015427,2]
[401253388,1768077046440,-172.741292,0.00015427,2]
[401253390,1768077046449,-510.947712,0.00015427,2]
[401253392,1768077046458,-510.947721,0.00015427,2]
[401253394,1768077046467,-172.741292,0.00015427,2]
[401253395,1768077046476,-172.741298,0.00015427,2]
[401253397,1768077046487,-8443.50879199,0.00015427,2]
[401253400,1768077046496,-17251.42199372,0.00015427,2]
[401253401,1768077046507,-200.0,0.00015476,2]
[401253403,1768077046516,-710.0,0.00015477,2]
[401253406,1768077046526,-500.0,0.00015494,2]
[401253407,1768077046535,-500.0,0.00015494,2]
[401253409,1768077046544,-500.0,0.00015494,2]
[401253411,1768077046553,-404.80283942,0.00015494,2]
[401253413,1768077046563,-192.7243004,0.00015494,2]
[401253415,1768077046572,-500.0,0.00015494,2]
[401253417,1768077046581,-500.0,0.00015494,2]
[401253419,1768077046591,-500.0,0.00015494,2]
[401253421,1768077046600,-500.0,0.00015494,2]
[401253422,1768077046608,-500.0,0.00015494,2]
[401253423,1768077046617,-500.0,0.00015494,2]
[401253424,1768077046626,-500.0,0.00015494,2]
[401253425,1768077046635,-500.0,0.00015494,2]
[401253426,1768077046643,-500.0,0.00015494,2]
[401253427,1768077046652,-500.0,0.00015494,2]
[401253428,1768077046660,-500.0,0.00015494,2]
[401253429,1768077046669,-500.0,0.00015494,2]
[401253430,1768077046678,-500.0,0.00015494,2]
[401253431,1768077046688,-500.0,0.00015494,2]
[401253432,1768077046696,-500.0,0.00015494,2]
[401253433,1768077046706,-500.0,0.00015494,2]
[401253434,1768077046715,-260.06429066,0.00015494,2]
[401253435,1768077046724,-408.3664128,0.00015503,2]
[401253436,1768077046733,-710.0,0.00015531,2]
[401253437,1768077046742,-166.66,0.00015545,2]
[401253439,1768077046751,-1589.98,0.00015558,2]
[401253441,1768077046761,-710.0,0.00015586,2]
[401253444,1768077046771,-500.0,0.00015603,2]
[401253446,1768077046780,-500.0,0.00015603,2]
[401253447,1768077046790,-500.0,0.00015603,2]
[401253449,1768077046799,-500.0,0.00015603,2]
[401253451,1768077046809,-500.0,0.00015603,2]
[401253454,1768077046818,-500.0,0.00015603,2]
[401253456,1768077046828,-500.0,0.00015603,2]
[401253457,1768077046837,-288.8563921,0.00015603,2]
[401253459,1768077046846,-500.0,0.00015603,2]
[401253461,1768077046855,-500.0,0.00015603,2]
[401253463,1768077046864,-550.41819902,0.00015603,2]
[401253466,1768077046874,-500.0,0.00015603,2]
[401253468,1768077046883,-500.0,0.00015603,2]
[401253469,1768077046892,-500.0,0.00015603,2]
[401253471,1768077046902,-500.0,0.00015603,2]
[401253473,1768077046912,-338.734734,0.00015603,2]